[Event "44th Chess Olympiad Women 2022"]
[Site "Chennai"]
[Date "2022.07.29"]
[Round "1.1"]
[White "Antonova, Nadezhda"]
[Black "Koneru, Humpy"]
[Result "0-1"]
[WhiteElo "1832"]
[BlackElo "2586"]
[Annotator "TA"]
[PlyCount "82"]
[EventDate "2022.??.??"]
[TimeControl "60"]

{[%evp 15,82,18,19,11,18,0,45,28,44,0,0,10,22,0,0,0,22,28,89,0,0,0,36,52,107,
93,238,117,121,47,41,48,45,-261,-251,-754,-735,-674,-468,-466,-465,-554,-423,
-415,-427,-545,-534,-530,-516,-542,-556,-556,-554,-570,-562,-575,-508,-508,
-507,-507,-506,-611,-616,-584,-492,-1029,-859,-833,-791]} 1. e4 {[%emt 0:00:03]
} e5 {[%emt 0:00:12]} 2. Nf3 {[%emt 0:00:13]} Nc6 {[%emt 0:00:11]} 3. Bc4 {
[%emt 0:00:20]} Bc5 {[%emt 0:00:29]} 4. c3 {[%emt 0:00:38]} Nf6 {[%emt 0:00:27]
} 5. d3 {[%emt 0:00:26]} O-O {[%emt 0:05:01]} 6. O-O {[%emt 0:01:09]} d5 {
[%emt 0:04:07]} 7. exd5 {[%emt 0:02:55]} Nxd5 {[%emt 0:03:43]} 8. Re1 {[%emt 0:
00:00]} Bg4 {[%emt 0:05:18]} 9. Nbd2 {[%emt 0:03:15] C54: Giuoco Piano: 4 c3
Nf6, main lines with 5 d4 and 5 d3.} Nb6 {[%emt 0:03:13]} 10. Ne4 {[%emt 0:00:
00]} Bd6 {[%emt 0:02:53]} 11. Bb3 {[%emt 0:00:55] White is slightly better.}
Kh8 {[%emt 0:05:52] [#]} 12. Ng3 $146 {[%emt 0:12:24]} ({Predecessor:} 12. h3
Bh5 13. Ng3 Bg6 14. Qe2 h6 15. Bc2 f5 16. b4 a6 17. a4 Nd5 18. Bd2 {0-1 (80)
Stadter,M-Schmakel,S (2435) Chess.com INT 2021}) 12... Qf6 {[%emt 0:04:24]} 13.
Re3 {[%emt 0:16:02]} Qg6 {[%emt 0:13:34]} 14. Nh4 {[%emt 0:09:20]} (14. h3 $5 {
[%cal Rh3g4]} Bxf3 15. Rxf3 $11 (15. Qxf3 f5 $11)) 14... Qg5 {[%emt 0:01:28]}
15. Nf3 {[%emt 0:00:09]} Qd8 {[%emt 0:03:51]} (15... Qg6 $5 {[%cal Rf7f5]}) 16.
h3 {[%emt 0:07:14]} Be6 {[%emt 0:03:46]} (16... Bd7 $11 {keeps the balance.})
17. Bc2 {[%emt 0:10:49]} (17. Bxe6 $16 fxe6 18. Re1) 17... f5 $11 {[%emt 0:00:
00]} 18. Re1 {[%emt 0:01:39]} h6 {[%emt 0:07:21]} 19. b4 {[%emt 0:02:39]} Qf6 {
[%emt 0:03:16]} ({Black should play} 19... Nd5 $14) 20. b5 $16 {[%emt 0:04:42]}
e4 {[%emt 0:13:21]} (20... Nb4 $16 {might work better.}) 21. Nh5 {[%emt 0:00:
00]} ({And not} 21. bxc6 exf3 22. cxb7 Rab8 $11) (21. dxe4 $18 {and the rest
is easy.} Bxg3 22. bxc6 (22. fxg3 Rad8 $16)) 21... Qf7 {[%emt 0:00:28] [#]} (
21... Qxc3 $2 22. Bd2 Qc5 23. bxc6 exf3 24. Bxh6 $18) 22. bxc6 {[%emt 0:01:05]}
(22. dxe4 $1 $16 Qxh5 23. bxc6 bxc6 24. Nd4 Qxd1 25. Rxd1 (25. Bxd1 Rae8 $14))
22... exf3 $14 {[%emt 0:02:38]} 23. cxb7 {[%emt 0:03:57]} Rae8 {[%emt 0:01:44]}
24. c4 $2 {[%emt 0:02:22]} Qxh5 $40 {[%emt 0:01:55] Black goes for the king.
Chess con chili.} 25. Qxf3 $2 {[%emt 0:02:41] [#]} (25. Bb2) 25... Bd5 $1 {
[%emt 0:03:24][%cal Re8e1]} 26. Qd1 {[%emt 0:01:08]} Rxe1+ {[%emt 0:02:12]} 27.
Qxe1 {[%emt 0:00:01]} Bxb7 {[%emt 0:00:09]} 28. Bd2 {[%emt 0:01:34]} Qg6 {
[%emt 0:02:52][%csl Gb7][%cal Rg6g2]} 29. Qf1 {[%emt 0:00:00]} f4 {[%emt 0:01:
21] aiming for ...f3.} 30. f3 {[%emt 0:01:02] Black is clearly winning.} Bc5+ {
[%emt 0:00:41]} 31. Kh1 {[%emt 0:00:02]} Nxc4 {[%emt 0:00:00]} 32. dxc4 {
[%emt 0:01:00]} Qxc2 {[%emt 0:00:07]} 33. Ba5 {[%emt 0:00:36]} Bd4 {[%emt 0:01:
26]} 34. Rc1 {[%emt 0:00:26]} Qxa2 {[%emt 0:00:14]} 35. Bxc7 {[%emt 0:00:12]}
Qf2 {[%emt 0:01:04]} 36. Qxf2 {[%emt 0:00:35]} Bxf2 {[%emt 0:00:00]} 37. Bd6 {
[%emt 0:00:17]} Rf7 {[%emt 0:00:49]} 38. c5 {[%emt 0:00:12]} Bc6 {[%emt 0:00:
23] Strongly threatening ...a5.} 39. Ra1 {[%emt 0:00:30]} Rb7 {[%emt 0:01:28]
Inhibits Bb8.} 40. Rf1 {[%emt 0:01:04]} (40. Bxf4 $142 Bxc5 41. Rc1) 40... Be3
{[%emt 0:01:14]} 41. h4 {[%emt 0:02:34]} a5 {[%emt 0:02:19] Weighted Error
Value: White=0.57/Black=0.26 (precise)} 0-1

[Event "44th Chess Olympiad Women 2022"]
[Site "Chennai"]
[Date "2022.07.29"]
[Round "1.1"]
[White "Kulkarni Bhakti"]
[Black "Hotami, Mutriba"]
[Result "1-0"]
[WhiteElo "2373"]
[BlackElo "1846"]
[Annotator "TA"]
[PlyCount "99"]
[EventDate "2022.??.??"]
[TimeControl "60"]

{[%evp 11,99,24,26,-7,38,9,31,27,29,11,11,11,11,19,14,10,8,8,6,0,11,-27,-30,
-20,-32,-38,17,0,0,-1,16,33,24,0,68,52,64,68,79,58,122,107,127,125,119,104,136,
86,161,152,151,114,331,312,297,284,1170,302,425,411,467,260,450,443,373,238,
335,335,335,335,327,330,327,324,333,288,714,636,636,555,5006,5277,1370,1320,
29979,29980,29980,29981,29978,29978]} 1. d4 {[%emt 0:00:25]} Nf6 {[%emt 0:00:
00]} 2. Nf3 {[%emt 0:00:31]} g6 {[%emt 0:00:27]} 3. Bg5 {[%emt 0:00:13]} Bg7 {
[%emt 0:00:13]} 4. Nbd2 {[%emt 0:00:08]} d5 {[%emt 0:01:38]} 5. e3 {[%emt 0:00:
00]} c6 {[%emt 0:01:56]} 6. c4 {[%emt 0:07:46]} O-O {[%emt 0:06:27][%cal Yc6c5]
} 7. Bd3 {[%emt 0:03:10] D03:1 d4 d5 2 Nf3 Nf6 3 Bg5, including Torre Attack
with early ...d5.} Nbd7 {[%emt 0:01:45]} 8. O-O {[%emt 0:00:33]} Re8 {[%emt 0:
00:00]} 9. Re1 {[%emt 0:04:34] [#] White is slightly better.} e5 $146 {[%emt 0:
00:00]} ({Predecessor:} 9... Qb6 10. cxd5 cxd5 11. Qb3 Qxb3 12. Nxb3 Ne4 13.
Bxe4 dxe4 14. Nfd2 f5 15. Rac1 h6 {1-0 (40) Hampe,L (1905)-Wiktor,R (1783)
Nordrheinwestfalen 2013}) 10. cxd5 {[%emt 0:01:10]} cxd5 {[%emt 0:00:06]} 11.
dxe5 {[%emt 0:04:29]} Nxe5 {[%emt 0:00:15]} 12. Nxe5 {[%emt 0:05:54]} Rxe5 {
[%emt 0:00:07]} 13. Nf3 {[%emt 0:01:20]} Bg4 {[%emt 0:13:41] [#] aiming for ...
Rxg5.} 14. Bf4 {[%emt 0:08:10]} Re7 {[%emt 0:06:36]} 15. Be2 {[%emt 0:12:30]}
Qb6 {[%emt 0:07:20]} 16. Nd4 {[%emt 0:12:29]} Bxe2 {[%emt 0:02:17]} 17. Rxe2 {
[%emt 0:00:10]} Nh5 {[%emt 0:08:28] [#] Threatens to win with ...Bxd4.} 18. Bg5
{[%emt 0:01:46]} Rd7 {[%emt 0:08:21]} (18... Re4 $15 19. Rd2 h6) 19. Rc1 {
[%emt 0:03:58]} h6 {[%emt 0:05:54]} 20. Bh4 {[%emt 0:03:45]} Re8 {[%emt 0:00:
00]} 21. Qa4 {[%emt 0:08:49]} Qd6 {[%emt 0:03:43] White must now prevent ...
Re4.} 22. Qxa7 {[%emt 0:02:33]} b6 {[%emt 0:04:37]} ({Better is} 22... Rc7 $11
23. Rec2 Rxc2 24. Rxc2 Qb4) 23. Qa6 {[%emt 0:04:36]} Rc7 {[%emt 0:01:56]
Prevents Rc6.} 24. Rxc7 {[%emt 0:02:03]} Qxc7 {[%emt 0:00:03]} 25. Rc2 {
[%emt 0:00:13] Against Qc1+} Qd6 {[%emt 0:00:42]} (25... Qd7 $1 $14 26. Nf3 (
26. Qxb6 Bxd4 27. Qxd4 Re4 $17) 26... Qf5) 26. Rc8 $36 {[%emt 0:01:55] Black
is under strong pressure.} Rxc8 {[%emt 0:00:32]} 27. Qxc8+ {[%emt 0:00:02]} Kh7
{[%emt 0:00:05]} 28. Qc3 {[%emt 0:01:39] White is more active.} g5 {[%emt 0:01:
09] Strongly threatening ...Qg6.} 29. Bg3 {[%emt 0:00:00]} (29. g4 $142) 29...
Nxg3 {[%emt 0:00:04]} (29... Qg6 $16 30. h3 Nxg3 31. fxg3 Be5) 30. hxg3 $16 {
[%emt 0:00:09] Endgame KQB-KQN} (30. fxg3 $6 Qg6 $16) 30... Qg6 {[%emt 0:00:59]
} 31. Qb3 {[%emt 0:03:37]} Qh5 $2 {[%emt 0:00:00] This costs Black the game.} (
31... Bxd4 $16 {might work better.} 32. exd4 Qe6) 32. a4 $18 {[%emt 0:01:32]} (
{Inferior is} 32. Qxd5 Qd1+ 33. Kh2 Qh5+ 34. Kg1 Qd1+ 35. Kh2 Qh5+ 36. Kg1 $11)
32... Bxd4 {[%emt 0:00:28]} 33. Qd3+ {[%emt 0:00:12]} ({Less strong is} 33.
exd4 Qe2 $16) 33... Qg6 $2 {[%emt 0:00:00]} (33... Kg7) 34. Qxd4 $2 {[%emt 0:
01:41] KQ-KQ} (34. Qxg6+ Kxg6 35. exd4) 34... Qc6 {[%emt 0:00:28]} (34... Qc2
$142 35. Qxd5 Kg8) 35. Kh2 {[%emt 0:00:00]} Kg6 {[%emt 0:00:26]} 36. g4 {
[%emt 0:00:27]} (36. b4 $142 {a5 is the strong threat.} Kf5 37. Qg7) 36... Qc7+
$2 {[%emt 0:00:32]} (36... f6 {is a better defense.} 37. b4 Qxa4) 37. Kh3 {
[%emt 0:00:30]} Qc6 {[%emt 0:00:34]} 38. Qh8 {[%emt 0:01:24]} Qxa4 {[%emt 0:00:
33]} (38... Qd6 $142 39. b3 Qe6 40. Qg8+ Kf6 41. Qd8+ Kg6) 39. Qg8+ {[%emt 0:
00:04]} Kf6 {[%emt 0:00:11]} 40. Qd8+ {[%emt 0:00:26]} Kg7 {[%emt 0:00:10]} 41.
Qxb6 {[%emt 0:30:12] Hoping for Qd4+.} ({Weaker is} 41. Qxd5 Qc2 $16) 41... Qc2
{[%emt 0:31:07]} 42. Kg3 {[%emt 0:00:00]} Qb1 {[%emt 0:00:00]} 43. b4 {[%emt 0:
00:00] And now b5 would win.} Qh1 $2 {[%emt 0:00:00]} (43... Qb3 44. Qc5 Kh7)
44. Qd4+ {[%emt 0:00:00]} f6 {[%emt 0:00:00]} 45. Qxd5 {[%emt 0:00:00]} Qh4+ {
[%emt 0:00:00]} 46. Kf3 {[%emt 0:00:00] b5 would kill now.} h5 {[%emt 0:00:00]}
47. Qd7+ {[%emt 0:00:00]} Kh6 {[%emt 0:00:00]} 48. Qe6 {[%emt 0:00:00] White
mates.} Kg7 {[%emt 0:00:00]} 49. Qe7+ {[%emt 0:00:00]} Kg8 {[%emt 0:00:00]} 50.
Qe8+ {[%emt 0:00:00] Weighted Error Value: White=0.29 (precise) /Black=0.53}
1-0

[Event "44th Chess Olympiad Women 2022"]
[Site "Chennai"]
[Date "2022.07.29"]
[Round "1.1"]
[White "Saidova, Rukhshona"]
[Black "Tania, Sachdev"]
[Result "0-1"]
[WhiteElo "1624"]
[BlackElo "2399"]
[Annotator "RC"]
[PlyCount "206"]
[EventDate "2022.??.??"]
[TimeControl "60"]

1. e4 {[%emt 0:00:12]} e5 {[%emt 0:00:07]} 2. Nf3 {[%emt 0:00:17]} Nc6 {
[%emt 0:00:04]} 3. Bb5 {[%emt 0:00:25]} a6 {[%emt 0:00:06]} 4. Ba4 {[%emt 0:00:
00]} Nf6 {[%emt 0:00:22]} 5. O-O {[%emt 0:00:33]} Be7 {[%emt 0:00:17]} 6. Re1 {
[%emt 0:00:52]} b5 {[%emt 0:00:35]} 7. Bb3 {[%emt 0:00:11]} d6 {[%emt 0:06:16]}
8. c3 {[%emt 0:01:51]} O-O {[%emt 0:01:21]} 9. h3 {[%emt 0:02:09]} h6 {[%emt 0:
00:00]} 10. d4 {[%emt 0:03:18]} Re8 {[%emt 0:00:51]} 11. Nbd2 {[%emt 0:03:09]}
Bf8 {[%emt 0:00:08]} 12. Nf1 {[%emt 0:01:30]} Bd7 {[%emt 0:00:46]} 13. Ng3 {
[%emt 0:01:21]} Na5 {[%emt 0:00:11]} 14. Bc2 {[%emt 0:00:39]} c5 {[%emt 0:00:
00]} 15. a4 {[%emt 0:06:56]} Nc6 {[%emt 0:06:26]} 16. axb5 {[%emt 0:07:08]}
axb5 {[%emt 0:00:12]} 17. Rxa8 {[%emt 0:01:03]} Qxa8 {[%emt 0:00:04]} 18. dxc5
{[%emt 0:02:50]} dxc5 {[%emt 0:00:22]} 19. Nh4 {[%emt 0:03:25]} g6 {[%emt 0:00:
00]} 20. Qf3 {[%emt 0:09:57]} Nh7 {[%emt 0:05:04]} 21. Nf1 {[%emt 0:07:48]} Nd8
{[%emt 0:32:23]} 22. Qg3 {[%emt 0:19:21]} Kh8 {[%emt 0:01:59]} 23. Ne3 {
[%emt 0:03:49]} Bg7 {[%emt 0:06:56]} 24. Nd5 {[%emt 0:03:25]} Qb7 {[%emt 0:00:
00]} 25. Rd1 {[%emt 0:02:30]} Bc6 {[%emt 0:02:51]} 26. Nf3 {[%emt 0:03:04]} Kg8
{[%emt 0:05:51]} 27. Nh2 {[%emt 0:05:33]} h5 {[%emt 0:05:28]} 28. Be3 {[%emt 0:
00:00]} Ne6 {[%emt 0:01:42]} 29. Nf3 {[%emt 0:01:35]} Qb8 {[%emt 0:01:23]} 30.
Ng5 {[%emt 0:01:01]} Nhxg5 {[%emt 0:04:50]} 31. Bxg5 {[%emt 0:00:03]} Nxg5 {
[%emt 0:00:07]} 32. Qxg5 {[%emt 0:00:05]} Qb7 {[%emt 0:00:09]} 33. f3 {[%emt 0:
00:00]} Re6 {[%emt 0:00:35]} 34. Qd8+ {[%emt 0:02:08]} Kh7 {[%emt 0:00:25]} 35.
Qh4 {[%emt 0:01:20]} Bh6 {[%emt 0:02:12]} 36. g4 {[%emt 0:00:55]} hxg4 {
[%emt 0:00:35]} 37. hxg4 {[%emt 0:00:08]} g5 {[%emt 0:00:27]} 38. Qh5 {[%emt 0:
00:00]} Rd6 {[%emt 0:00:16]} 39. Ne3 {[%emt 0:01:00]} Rxd1+ {[%emt 0:00:05]}
40. Bxd1 {[%emt 0:00:02]} Qd7 {[%emt 0:00:55]} 41. Be2 {[%emt 0:30:31]} Qe6 {
[%emt 0:04:22]} 42. Nf5 {[%emt 0:00:00]} Qg6 {[%emt 0:03:56]} 43. Qxg6+ {
[%emt 0:00:00]} fxg6 {[%emt 0:00:02]} 44. Ne7 {[%emt 0:00:00]} Bd7 {[%emt 0:00:
00]} 45. Nd5 {[%emt 0:00:00]} Kg7 {[%emt 0:01:33]} 46. Nc7 {[%emt 0:00:00]} c4
{[%emt 0:01:05]} 47. Kf2 {[%emt 0:00:00]} Kf7 {[%emt 0:00:36]} 48. Ke3 {
[%emt 0:00:00]} Bf8 {[%emt 0:00:16]} 49. Nd5 {[%emt 0:00:00]} Ke6 {[%emt 0:00:
00]} 50. Kd2 {[%emt 0:00:00]} Bc5 {[%emt 0:03:24]} 51. Ne3 {[%emt 0:00:00]} Kd6
{[%emt 0:00:28]} 52. Bd1 {[%emt 0:00:00]} Be6 {[%emt 0:00:16]} 53. Be2 {
[%emt 0:00:00]} Kc6 {[%emt 0:00:26]} 54. Nf1 {[%emt 0:00:00]} Bf2 {[%emt 0:00:
00]} 55. Kc2 {[%emt 0:00:00]} Kc5 {[%emt 0:00:23]} 56. Nd2 {[%emt 0:00:00]} Be3
{[%emt 0:04:34]} 57. Nb1 {[%emt 0:00:16]} Bf4 {[%emt 0:01:29]} 58. Nd2 {
[%emt 0:01:32]} b4 {[%emt 0:00:51]} 59. Nb1 {[%emt 0:01:12]} Bd7 {[%emt 0:00:
00]} 60. b3 {[%emt 0:04:01]} cxb3+ {[%emt 0:03:07]} 61. Kxb3 {[%emt 0:00:16]}
Be6+ {[%emt 0:00:05]} 62. Kb2 {[%emt 0:02:38]} Be3 {[%emt 0:03:15]} 63. cxb4+ {
[%emt 0:01:34]} Kxb4 {[%emt 0:00:07]} 64. Kc2 {[%emt 0:00:50]} Bb3+ {[%emt 0:
00:00]} 65. Kd3 {[%emt 0:00:01]} Bd4 {[%emt 0:04:03]} 66. Nd2 {[%emt 0:01:14]}
Ba4 {[%emt 0:00:02]} 67. Nb1 {[%emt 0:00:15]} Bd7 {[%emt 0:02:10]} 68. Kd2 {
[%emt 0:00:07]} Kb3 {[%emt 0:00:25]} 69. Bd3 {[%emt 0:00:51]} Kb2 {[%emt 0:00:
00]} 70. Ke2 {[%emt 0:00:20]} Kc1 {[%emt 0:01:04]} 71. Nd2 {[%emt 0:00:14]} Ba4
{[%emt 0:00:04]} 72. Nc4 {[%emt 0:01:08]} Bd1+ {[%emt 0:00:11]} 73. Ke1 {
[%emt 0:00:21]} Bxf3 {[%emt 0:00:25]} 74. Nd6 {[%emt 0:00:15]} Be3 {[%emt 0:00:
00]} 75. Be2 {[%emt 0:00:26]} Bh1 {[%emt 0:00:18]} 76. Bd3 {[%emt 0:00:35]} Bf3
{[%emt 0:00:44]} 77. Be2 {[%emt 0:00:07]} Bg2 {[%emt 0:00:03]} 78. Bd3 {
[%emt 0:00:05]} Bh3 {[%emt 0:00:27]} 79. Be2 {[%emt 0:00:04]} Kc2 {[%emt 0:00:
00]} 80. Nf7 {[%emt 0:01:19]} Bf4 {[%emt 0:00:39]} 81. Bf3 {[%emt 0:01:10]} Kd3
{[%emt 0:00:25]} 82. Kf2 {[%emt 0:00:07]} Kd2 {[%emt 0:00:33]} 83. Nh8 {
[%emt 0:00:59]} Be3+ {[%emt 0:00:12]} 84. Kg3 {[%emt 0:00:02]} Bf1 {[%emt 0:00:
00]} 85. Nxg6 {[%emt 0:00:09]} Ke1 {[%emt 0:00:16]} 86. Bg2 {[%emt 0:01:04]}
Bc4 {[%emt 0:01:30]} 87. Kh3 {[%emt 0:00:31]} Bf4 {[%emt 0:00:24]} 88. Ne7 {
[%emt 0:00:36]} Ke2 {[%emt 0:00:39]} 89. Nd5 {[%emt 0:00:39]} Kf2 {[%emt 0:00:
00]} 90. Nc3 {[%emt 0:00:24]} Ke3 {[%emt 0:00:44]} 91. Nd1+ {[%emt 0:00:29]}
Kd2 {[%emt 0:00:14]} 92. Nf2 {[%emt 0:00:38]} Ke2 {[%emt 0:00:19]} 93. Nh1 {
[%emt 0:00:22]} Bd3 {[%emt 0:00:28]} 94. Ng3+ {[%emt 0:00:41]} Bxg3 {[%emt 0:
00:00]} 95. Kxg3 {[%emt 0:00:20]} Ke3 {[%emt 0:00:07]} 96. Bf3 {[%emt 0:00:37]}
Bxe4 {[%emt 0:00:43]} 97. Bd1 {[%emt 0:00:21]} Bd3 {[%emt 0:00:21]} 98. Bf3 {
[%emt 0:00:43]} Kd2 {[%emt 0:00:38]} 99. Kf2 {[%emt 0:00:28]} e4 {[%emt 0:00:
00]} 100. Bxe4 {[%emt 0:00:29]} Bxe4 {[%emt 0:00:02]} 101. Kg3 {[%emt 0:00:18]}
Ke3 {[%emt 0:00:03]} 102. Kh2 {[%emt 0:00:30]} Kf4 {[%emt 0:00:04]} 103. Kh3 {
[%emt 0:00:07]} Bd5 {[%emt 0:00:05]} 0-1

[Event "44th Chess Olympiad Women 2022"]
[Site "Chennai"]
[Date "2022.07.29"]
[Round "1.1"]
[White "Vaishali R"]
[Black "Abrorova, Sabrina"]
[Result "1-0"]
[WhiteElo "2442"]
[BlackElo "1799"]
[Annotator "TA"]
[PlyCount "77"]
[EventDate "2022.??.??"]
[TimeControl "60"]

{[%evp 10,77,20,6,18,16,31,32,35,19,93,35,76,56,68,56,66,76,156,166,191,162,
160,178,212,223,341,377,435,410,418,403,405,370,421,408,408,406,436,422,412,
397,382,389,364,253,704,695,787,783,730,641,587,370,628,436,442,437,445,435,
418,391,409,370,758,727,29973,29974,29991,864]} 1. e4 {[%emt 0:00:21]} c5 {
[%emt 0:00:31]} 2. Nf3 {[%emt 0:00:06]} d6 {[%emt 0:00:32]} 3. d4 {[%emt 0:00:
00]} cxd4 {[%emt 0:00:22]} 4. Nxd4 {[%emt 0:00:06]} Nf6 {[%emt 0:00:24]} 5. Nc3
{[%emt 0:00:06]} a6 {[%emt 0:00:10]} 6. Nb3 {[%emt 0:00:23]} e6 {[%emt 0:02:47]
B90: Sicilian Najdorf: Unusual White 6th moves, 6 Be3 Ng4 and 6 Be3 e5.} 7. g4
{[%emt 0:00:13][%cal Yg2g4,Yg4g5]} Be7 {[%emt 0:01:29]} 8. g5 {[%emt 0:01:28]}
Nfd7 {[%emt 0:00:37] White is slightly better.} 9. h4 {[%emt 0:00:00] [#]} b6
$146 {[%emt 0:18:20]} (9... b5 $11) ({Predecessor:} 9... b5 10. Bg2 Bb7 11. f4
Nc6 12. Be3 Rc8 13. f5 Nde5 14. O-O Nc4 15. Bc1 N6e5 {1-0 (74) Naroditsky,D 
(2646)-Martinez Alcantara,J (2449) Chess.com INT 2017}) 10. Bg2 {[%emt 0:02:03]
White is more active.} (10. Bf4 $16) 10... Bb7 {[%emt 0:00:25]} 11. Be3 {
[%emt 0:01:06]} Nc6 {[%emt 0:09:50]} 12. Qe2 {[%emt 0:01:56]} Rc8 {[%emt 0:05:
26]} 13. f4 {[%emt 0:04:54] Prevents Nce5. Black is on the road to losing.} Nc5
{[%emt 0:17:45]} (13... b5 $142) 14. O-O-O $16 {[%emt 0:19:20]} Qc7 {[%emt 0:
10:10]} 15. h5 {[%emt 0:08:28]} b5 {[%emt 0:04:46] [#]} 16. g6 $1 $36 {[%emt 0:
09:43] And now h6 would win. White is in control.} Nxb3+ {[%emt 0:06:20]} 17.
axb3 {[%emt 0:01:48] Hoping for h6.} h6 {[%emt 0:00:00]} (17... O-O $142 18. f5
fxg6) 18. gxf7+ $18 {[%emt 0:08:53]} Kf8 {[%emt 0:00:00]} 19. Bh3 {[%emt 0:00:
45]} ({Not} 19. Qg4 b4 $16) 19... Nd8 {[%emt 0:00:00]} 20. Bd4 {[%emt 0:01:05]}
({Less strong is} 20. Qg2 Bf6 21. Rhg1 b4 $18) 20... Bf6 {[%emt 0:01:23]} 21.
Bxf6 {[%emt 0:07:12]} gxf6 {[%emt 0:00:01]} 22. Rhg1 {[%emt 0:01:03]} b4 {
[%emt 0:02:31]} 23. Na4 {[%emt 0:02:17]} Ke7 {[%emt 0:01:09]} 24. Rd2 {[%emt 0:
08:47]} Rf8 {[%emt 0:00:35]} 25. e5 {[%emt 0:00:00]} dxe5 {[%emt 0:00:25]} 26.
fxe5 {[%emt 0:00:08]} f5 {[%emt 0:00:32]} 27. Rgd1 {[%emt 0:04:22] The board
is on fire.} Bd5 $2 {[%emt 0:00:32] [#]} (27... Nxf7 28. Rd7+ Qxd7 29. Rxd7+
Kxd7 30. Nb6+ Ke7 31. Nxc8+ Rxc8) 28. Bxf5 $1 {[%emt 0:03:32]} Nxf7 {[%emt 0:
00:31]} (28... Rxf7 29. Bg6) 29. Rxd5 {[%emt 0:01:27]} exd5 {[%emt 0:00:27]}
30. Bxc8 {[%emt 0:00:36]} Rxc8 {[%emt 0:00:00]} 31. Rxd5 {[%emt 0:00:11]} Qb7
$2 {[%emt 0:00:59]} (31... Rd8) 32. Qd3 {[%emt 0:00:53]} Rd8 {[%emt 0:00:31]}
33. Rxd8 {[%emt 0:00:49]} Nxd8 {[%emt 0:00:00] Endgame KQN-KQN} 34. Qd6+ {
[%emt 0:02:03]} Ke8 {[%emt 0:00:00]} 35. Kb1 {[%emt 0:02:01]} Qh1+ {[%emt 0:01:
00]} 36. Ka2 {[%emt 0:00:02] Black must now prevent Qg6+.} Qxh5 {[%emt 0:00:06]
} (36... Qc6 37. Qxb4 Qxc2) 37. Nb6 {[%emt 0:01:22] White wants to mate with
Qd7+.} Qf7 {[%emt 0:00:59] Against Qd7+} 38. Nd5 {[%emt 0:00:21]} Ne6 {[%emt 0:
00:32]} 39. Nf6+ {[%emt 0:00:00] Weighted Error Value: White=0.27 (precise) /
Black=0.53} 1-0

[Event "44th Chess Olympiad Women 2022"]
[Site "Chennai"]
[Date "2022.07.29"]
[Round "1.2"]
[White "Badenhorst, Chloe"]
[Black "Ushenina, Anna"]
[Result "0-1"]
[WhiteElo "1703"]
[BlackElo "2423"]
[Annotator "TA"]
[PlyCount "76"]
[EventDate "2022.??.??"]
[TimeControl "60"]

{[%evp 11,76,27,44,33,35,33,60,25,21,1,31,43,50,13,16,-1,-2,-29,-23,-77,-88,
-107,-101,-143,-126,-235,-239,-221,-218,-218,-175,-184,-154,-181,-178,-209,
-212,-334,-262,-425,-399,-457,-302,-347,-266,-550,-452,-610,-581,-593,-569,
-1427,-860,-1669,-1202,-5473,-706,-720,-432,-1202,-1066,-999,-979,-29989,
-29990,-29992,-29993]} 1. e4 {[%emt 0:00:03]} c6 {[%emt 0:00:16]} 2. d4 {
[%emt 0:00:08]} d5 {[%emt 0:00:07]} 3. e5 {[%emt 0:00:06]} Bf5 {[%emt 0:00:17]}
4. Nf3 {[%emt 0:00:14]} e6 {[%emt 0:00:14]} 5. Be2 {[%emt 0:00:05]} Nd7 {
[%emt 0:00:42]} 6. O-O {[%emt 0:00:24]} Bg6 {[%emt 0:00:29]} 7. Nbd2 {[%emt 0:
00:00] B12: Caro-Kann: Advance Variation.} Nh6 {[%emt 0:00:16]} 8. Nb3 {
[%emt 0:00:35]} Rc8 {[%emt 0:03:31]} 9. a4 {[%emt 0:07:23] White is slightly
better.} (9. Bxh6 $5 gxh6 10. Re1 $11) 9... Nf5 {[%emt 0:02:49]} 10. Bd2 {
[%emt 0:05:41]} Be7 {[%emt 0:34:02] [#]} 11. g4 $146 {[%emt 0:04:10]} ({
Predecessor:} 11. a5 a6 12. c4 dxc4 13. Bxc4 O-O 14. Qe2 Qc7 15. Rac1 Rfd8 16.
Rfd1 Qb8 17. Bg5 {0-1 (34) Hapala,E (2158)-Kopinits,A (2204) Playchess.com INT
2020}) 11... Nh6 {[%emt 0:01:00]} 12. h3 {[%emt 0:01:27]} O-O {[%emt 0:01:20]}
13. Ne1 {[%emt 0:10:31]} c5 {[%emt 0:22:03]} 14. Bb5 {[%emt 0:41:53]} cxd4 {
[%emt 0:07:38]} 15. Bxd7 {[%emt 0:01:30]} (15. f4 $11) 15... Qxd7 $17 {[%emt 0:
00:00] Black keeps a firm grip on the game.} 16. Nxd4 {[%emt 0:01:02] [#]} f6
$1 {[%emt 0:11:13]} 17. Nef3 {[%emt 0:09:03]} Nf7 {[%emt 0:00:35]} 18. exf6 {
[%emt 0:01:05]} (18. Bf4 $17) 18... Bxf6 $19 {[%emt 0:00:42]} 19. c3 {[%emt 0:
00:00]} e5 {[%emt 0:01:54]} 20. Ne2 {[%emt 0:01:17]} h5 {[%emt 0:04:31][%cal
Yh7h5,Yh5h4]} 21. Nh2 {[%emt 0:03:14]} Ng5 {[%emt 0:00:04]} 22. Bxg5 {[%emt 0:
01:09]} Bxg5 {[%emt 0:00:02]} 23. Ng3 {[%emt 0:02:03]} h4 {[%emt 0:00:00]} 24.
Ne2 {[%emt 0:01:47]} (24. Nf5 {was the only defense.}) 24... Rce8 {[%emt 0:06:
33]} 25. Qb3 $2 {[%emt 0:04:39]} (25. f4 exf4 26. Nf3) 25... Bd3 {[%emt 0:00:
06]} 26. Qd1 {[%emt 0:00:44]} Be4 {[%emt 0:01:12] A strong pair of Bishops.}
27. f3 {[%emt 0:00:50]} Bg6 {[%emt 0:00:21] ...Be3+ is the strong threat.} 28.
Nc1 $2 {[%emt 0:00:19]} (28. f4 {was called for.} exf4 29. Nf3) 28... Rf7 {
[%emt 0:00:37]} 29. Nd3 {[%emt 0:00:22]} Be3+ {[%emt 0:00:28]} 30. Kg2 {
[%emt 0:00:26]} e4 {[%emt 0:00:12]} 31. Nb4 {[%emt 0:00:28]} d4 {[%emt 0:00:00]
[#] And now ...exf3+ would win.} 32. Nc2 {[%emt 0:00:55]} Qc7 {[%emt 0:00:00] 
( -> ...exf3+)} 33. Nxe3 {[%emt 0:00:12]} Qg3+ {[%emt 0:00:04]} (33... exf3+
$142 34. Kh1 dxe3) 34. Kh1 {[%emt 0:00:21]} dxe3 {[%emt 0:00:03]} 35. Qe1 {
[%emt 0:00:54]} (35. f4 $142 Rxf4 36. Rxf4 Qxf4 37. Qe2) 35... Qxh3 {[%emt 0:
00:00][%cal Re4f3]} 36. Qxe3 {[%emt 0:00:28]} Rxf3 {[%emt 0:00:17]} 37. Rxf3 {
[%emt 0:00:15]} exf3 {[%emt 0:00:03][%csl Gf3][%cal Rh3g2]} 38. Qg1 {[%emt 0:
00:00]} Re2 {[%emt 0:00:29] Weighted Error Value: White=1.13/Black=0.77} 0-1